[Event "Titled Tuesday Blitz March 14 Late 2023"]
[White "Rangel, Daniel"]
[Black "Larino Nieto, David"]
[WhiteFideId "2124475"]
[BlackFideId "2256444"]
[WhiteElo "2256"]
[BlackElo "2506"]
[Result "0-1"]
[Round "02"]
[TimeControl "180+1"]
[Date "2023.03.14"]
[WhiteClock "0:00:25"]
[BlackClock "0:00:15"]

1. c4 {[%clk 0:02:59]}  e6 {[%clk 0:02:57]} 2. g3 {[%clk 0:03:00]}  h5 {[%clk 0:02:54]} 3. Bg2 {[%clk 0:03:00]}  h4 {[%clk 0:02:54]} 4. Nc3 {[%clk 0:03:00]}  d6 {[%clk 0:02:53]} 5. e3 {[%clk 0:02:56]}  e5 {[%clk 0:02:48]} 6. Nge2 {[%clk 0:02:49]}  h3 {[%clk 0:02:47]} 7. Be4 {[%clk 0:02:45]}  f5 {[%clk 0:02:45]} 8. Bc2 {[%clk 0:02:45]}  Nf6 {[%clk 0:02:44]} 9. d4 {[%clk 0:02:40]}  e4 {[%clk 0:02:43]} 10. Nf4 {[%clk 0:02:39]}  Kf7 {[%clk 0:02:41]} 11. O-O {[%clk 0:02:27]}  g5 {[%clk 0:02:29]} 12. Nfd5 {[%clk 0:02:27]}  g4 {[%clk 0:02:22]} 13. Nxf6 {[%clk 0:02:21]}  Qxf6 {[%clk 0:02:20]} 14. Nd5 {[%clk 0:02:20]}  Qd8 {[%clk 0:02:18]} 15. Nf4 {[%clk 0:02:20]}  c6 {[%clk 0:02:05]} 16. b4 {[%clk 0:02:18]}  a5 {[%clk 0:01:48]} 17. b5 {[%clk 0:02:05]}  Bg7 {[%clk 0:01:29]} 18. Rb1 {[%clk 0:01:56]}  Nd7 {[%clk 0:01:14]} 19. bxc6 {[%clk 0:01:43]}  bxc6 {[%clk 0:01:15]} 20. d5 {[%clk 0:01:43]}  c5 {[%clk 0:01:07]} 21. Ne6 {[%clk 0:01:41]}  Qe7 {[%clk 0:00:51]} 22. Nxg7 {[%clk 0:01:28]}  Kxg7 {[%clk 0:00:50]} 23. Bb2+ {[%clk 0:01:29]}  Ne5 {[%clk 0:00:50]} 24. Qc1 {[%clk 0:01:24]}  Kf7 {[%clk 0:00:42]} 25. Bxe5 {[%clk 0:01:19]}  Qxe5 {[%clk 0:00:43]} 26. Qb2 {[%clk 0:01:20]}  Qxb2 {[%clk 0:00:38]} 27. Rxb2 {[%clk 0:01:21]}  Ba6 {[%clk 0:00:38]} 28. Ba4 {[%clk 0:00:31]}  Bxc4 {[%clk 0:00:29]} 29. Rb7+ {[%clk 0:00:30]}  Kf6 {[%clk 0:00:27]} 30. Bc6 {[%clk 0:00:31]}  Bxf1 {[%clk 0:00:26]} 31. Kxf1 {[%clk 0:00:30]}  Rab8 {[%clk 0:00:24]} 32. Rd7 {[%clk 0:00:30]}  Rhd8 {[%clk 0:00:21]} 33. Rh7 {[%clk 0:00:25]}  Rb2 {[%clk 0:00:17]} 34. a4 {[%clk 0:00:24]}  Rdb8 {[%clk 0:00:15]} 35. Rh6+ {[%clk 0:00:25]}  Kg7 {[%clk 0:00:14]} 36. Rxd6 {[%clk 0:00:24]}  Rb1+ {[%clk 0:00:14]} 37. Ke2 {[%clk 0:00:25]}  R8b2# {[%clk 0:00:15]} 0-1


[Site "https://www.chess.com"]

[Event "Titled Tuesday Blitz March 14 Late 2023"]
[White "Rodchenkov, Sergey D."]
[Black "Adury, Anant"]
[WhiteFideId "4168712"]
[BlackFideId "30964687"]
[WhiteElo "2277"]
[BlackElo "2252"]
[Result "1-0"]
[Round "02"]
[TimeControl "180+1"]
[Date "2023.03.14"]
[WhiteClock "0:01:12"]
[BlackClock "0:00:18"]

1. e4 {[%clk 0:02:53]}  e5 {[%clk 0:03:00]} 2. Nf3 {[%clk 0:02:52]}  Nf6 {[%clk 0:03:00]} 3. d4 {[%clk 0:02:52]}  d5 {[%clk 0:02:54]} 4. Nxe5 {[%clk 0:02:42]}  Nxe4 {[%clk 0:02:52]} 5. Bd3 {[%clk 0:02:42]}  Bd6 {[%clk 0:02:50]} 6. O-O {[%clk 0:02:41]}  O-O {[%clk 0:02:50]} 7. c4 {[%clk 0:02:40]}  c6 {[%clk 0:02:46]} 8. Nc3 {[%clk 0:02:40]}  Nxc3 {[%clk 0:01:55]} 9. bxc3 {[%clk 0:02:40]}  Nd7 {[%clk 0:01:55]} 10. f4 {[%clk 0:02:37]}  Nf6 {[%clk 0:01:53]} 11. Qc2 {[%clk 0:02:25]}  c5 {[%clk 0:01:35]} 12. Be3 {[%clk 0:02:17]}  cxd4 {[%clk 0:01:27]} 13. Bxd4 {[%clk 0:02:16]}  dxc4 {[%clk 0:01:25]} 14. Bxc4 {[%clk 0:02:15]}  Qc7 {[%clk 0:01:18]} 15. Qb3 {[%clk 0:02:11]}  Bf5 {[%clk 0:01:13]} 16. Rae1 {[%clk 0:02:06]}  Rac8 {[%clk 0:01:11]} 17. Be2 {[%clk 0:01:57]}  Ne4 {[%clk 0:00:56]} 18. Nc4 {[%clk 0:01:32]}  Bc5 {[%clk 0:00:52]} 19. Bd3 {[%clk 0:01:26]}  Nd2 {[%clk 0:00:38]} 20. Nxd2 {[%clk 0:01:22]}  Bxd3 {[%clk 0:00:38]} 21. Rf3 {[%clk 0:01:22]}  Bf5 {[%clk 0:00:24]} 22. Qd5 {[%clk 0:01:16]}  Be6 {[%clk 0:00:20]} 23. Qg5 {[%clk 0:01:14]}  Bxd4+ {[%clk 0:00:19]} 24. cxd4 {[%clk 0:01:15]}  Bd5 {[%clk 0:00:18]} 25. Rg3 {[%clk 0:01:15]}  g6 {[%clk 0:00:18]} 26. Qxd5 {[%clk 0:01:12]} 1-0


[Site "https://www.chess.com"]

[Event "Titled Tuesday Blitz March 14 Late 2023"]
[White "Ronka, Erik"]
[Black "Delorme, Alban"]
[WhiteFideId "505080"]
[BlackFideId "623636"]
[WhiteElo "2264"]
[BlackElo "2196"]
[Result "1-0"]
[Round "02"]
[TimeControl "180+1"]
[Date "2023.03.14"]
[WhiteClock "0:02:14"]
[BlackClock "0:02:28"]

1. e4 {[%clk 0:03:00]}  c5 {[%clk 0:02:57]} 2. Nf3 {[%clk 0:02:56]}  d6 {[%clk 0:02:56]} 3. Bb5+ {[%clk 0:02:52]}  Bd7 {[%clk 0:02:55]} 4. Bxd7+ {[%clk 0:02:52]}  Nxd7 {[%clk 0:02:56]} 5. O-O {[%clk 0:02:52]}  Ngf6 {[%clk 0:02:53]} 6. Qe2 {[%clk 0:02:52]}  g6 {[%clk 0:02:52]} 7. c3 {[%clk 0:02:51]}  Bg7 {[%clk 0:02:51]} 8. d4 {[%clk 0:02:51]}  cxd4 {[%clk 0:02:52]} 9. cxd4 {[%clk 0:02:52]}  d5 {[%clk 0:02:52]} 10. e5 {[%clk 0:02:36]}  Ne4 {[%clk 0:02:52]} 11. Nbd2 {[%clk 0:02:36]}  Nxd2 {[%clk 0:02:51]} 12. Bxd2 {[%clk 0:02:37]}  e6 {[%clk 0:02:49]} 13. Bb4 {[%clk 0:02:35]}  a5 {[%clk 0:02:49]} 14. Bd6 {[%clk 0:02:34]}  Nb6 {[%clk 0:02:47]} 15. Qb5+ {[%clk 0:02:30]}  Nd7 {[%clk 0:02:39]} 16. Rac1 {[%clk 0:02:27]}  Bf8 {[%clk 0:02:35]} 17. Bc7 {[%clk 0:02:14]}  Qe7 {[%clk 0:02:28]} 18. Qxb7 {[%clk 0:02:14]} 1-0


[Site "https://www.chess.com"]

[Event "Titled Tuesday Blitz March 14 Late 2023"]
[White "Ruiz Castillo, Joshua Daniel"]
[Black "Caruana, Fabiano"]
[WhiteFideId "4400704"]
[BlackFideId "2020009"]
[WhiteElo "2491"]
[BlackElo "2818"]
[Result "1-0"]
[Round "02"]
[TimeControl "180+1"]
[Date "2023.03.14"]
[WhiteClock "0:00:14"]
[BlackClock "0:00:03"]

1. Nf3 {[%clk 0:02:48]}  Nc6 {[%clk 0:02:58]} 2. b3 {[%clk 0:02:44]}  e5 {[%clk 0:02:58]} 3. Bb2 {[%clk 0:02:44]}  e4 {[%clk 0:02:57]} 4. Nd4 {[%clk 0:02:45]}  Nf6 {[%clk 0:02:54]} 5. c4 {[%clk 0:02:43]}  Nxd4 {[%clk 0:02:35]} 6. Bxd4 {[%clk 0:02:43]}  d5 {[%clk 0:02:30]} 7. cxd5 {[%clk 0:02:25]}  Qxd5 {[%clk 0:02:31]} 8. e3 {[%clk 0:02:13]}  Qf5 {[%clk 0:02:28]} 9. Qc2 {[%clk 0:02:07]}  Bd6 {[%clk 0:01:45]} 10. Nc3 {[%clk 0:01:58]}  O-O {[%clk 0:01:44]} 11. Bxf6 {[%clk 0:01:51]}  Qxf6 {[%clk 0:01:45]} 12. Qxe4 {[%clk 0:01:48]}  Bf5 {[%clk 0:01:36]} 13. Qxb7 {[%clk 0:01:36]}  Rab8 {[%clk 0:01:31]} 14. Qf3 {[%clk 0:01:35]}  Bb4 {[%clk 0:01:18]} 15. Rc1 {[%clk 0:01:24]}  Ba3 {[%clk 0:01:17]} 16. Rd1 {[%clk 0:01:20]}  Bc2 {[%clk 0:01:07]} 17. Qxf6 {[%clk 0:01:17]}  gxf6 {[%clk 0:01:08]} 18. Nd5 {[%clk 0:01:13]}  Bxd1 {[%clk 0:01:06]} 19. Kxd1 {[%clk 0:01:13]}  Kg7 {[%clk 0:00:54]} 20. Bc4 {[%clk 0:01:05]}  c6 {[%clk 0:00:54]} 21. Nf4 {[%clk 0:01:04]}  a5 {[%clk 0:00:53]} 22. Kc2 {[%clk 0:00:57]}  f5 {[%clk 0:00:48]} 23. Ne2 {[%clk 0:00:53]}  Kf6 {[%clk 0:00:43]} 24. g3 {[%clk 0:00:48]}  Rfd8 {[%clk 0:00:42]} 25. h4 {[%clk 0:00:47]}  a4 {[%clk 0:00:39]} 26. d3 {[%clk 0:00:44]}  axb3+ {[%clk 0:00:38]} 27. Bxb3 {[%clk 0:00:45]}  Rb5 {[%clk 0:00:33]} 28. Nd4 {[%clk 0:00:33]}  Rb6 {[%clk 0:00:32]} 29. Rd1 {[%clk 0:00:30]}  Ra8 {[%clk 0:00:31]} 30. Nf3 {[%clk 0:00:20]}  Ra5 {[%clk 0:00:31]} 31. Nd2 {[%clk 0:00:20]}  Rb8 {[%clk 0:00:22]} 32. Nc4 {[%clk 0:00:21]}  Ra7 {[%clk 0:00:22]} 33. Kd2 {[%clk 0:00:21]}  Be7 {[%clk 0:00:20]} 34. Ke2 {[%clk 0:00:22]}  Rd8 {[%clk 0:00:18]} 35. Kf3 {[%clk 0:00:22]}  Rad7 {[%clk 0:00:17]} 36. Ke2 {[%clk 0:00:23]}  Rb7 {[%clk 0:00:17]} 37. Rc1 {[%clk 0:00:23]}  Ra7 {[%clk 0:00:16]} 38. Rc2 {[%clk 0:00:23]}  c5 {[%clk 0:00:17]} 39. Nb2 {[%clk 0:00:23]}  Rb8 {[%clk 0:00:16]} 40. Nc4 {[%clk 0:00:23]}  Rd8 {[%clk 0:00:16]} 41. Nd2 {[%clk 0:00:23]}  Bd6 {[%clk 0:00:16]} 42. Bc4 {[%clk 0:00:24]}  Rb8 {[%clk 0:00:15]} 43. Nb3 {[%clk 0:00:24]}  Rba8 {[%clk 0:00:15]} 44. Nd2 {[%clk 0:00:24]}  Rb8 {[%clk 0:00:15]} 45. Bb3 {[%clk 0:00:25]}  Re8 {[%clk 0:00:15]} 46. Nc4 {[%clk 0:00:25]}  Bc7 {[%clk 0:00:15]} 47. Nb2 {[%clk 0:00:25]}  Ra5 {[%clk 0:00:14]} 48. Na4 {[%clk 0:00:24]}  Bd6 {[%clk 0:00:14]} 49. Nb6 {[%clk 0:00:25]}  Ra6 {[%clk 0:00:12]} 50. Nd5+ {[%clk 0:00:24]}  Kg7 {[%clk 0:00:12]} 51. Nc3 {[%clk 0:00:24]}  f4 {[%clk 0:00:12]} 52. gxf4 {[%clk 0:00:23]}  Bxf4 {[%clk 0:00:13]} 53. Ne4 {[%clk 0:00:23]}  Be5 {[%clk 0:00:12]} 54. Rxc5 {[%clk 0:00:23]}  Rh6 {[%clk 0:00:13]} 55. f4 {[%clk 0:00:22]}  Bb8 {[%clk 0:00:10]} 56. h5 {[%clk 0:00:21]}  Kf8 {[%clk 0:00:10]} 57. Rf5 {[%clk 0:00:21]}  Re7 {[%clk 0:00:09]} 58. Kf3 {[%clk 0:00:22]}  Rc6 {[%clk 0:00:09]} 59. Ng5 {[%clk 0:00:22]}  f6 {[%clk 0:00:08]} 60. Ne4 {[%clk 0:00:22]}  Kg7 {[%clk 0:00:09]} 61. Rb5 {[%clk 0:00:22]}  Ba7 {[%clk 0:00:08]} 62. Bc4 {[%clk 0:00:22]}  Rcc7 {[%clk 0:00:07]} 63. Rd5 {[%clk 0:00:21]}  Rcd7 {[%clk 0:00:07]} 64. Rb5 {[%clk 0:00:21]}  Rc7 {[%clk 0:00:07]} 65. Rd5 {[%clk 0:00:21]}  Rb7 {[%clk 0:00:08]} 66. d4 {[%clk 0:00:18]}  Red7 {[%clk 0:00:08]} 67. Ra5 {[%clk 0:00:17]}  Rdc7 {[%clk 0:00:08]} 68. Nd6 {[%clk 0:00:17]}  Rb8 {[%clk 0:00:07]} 69. Bd3 {[%clk 0:00:16]}  Kf8 {[%clk 0:00:07]} 70. Nb5 {[%clk 0:00:14]}  Rcc8 {[%clk 0:00:03]} 1-0


[Site "https://www.chess.com"]

[Event "Titled Tuesday Blitz March 14 Late 2023"]
[White "Rustemov, Alexander"]
[Black "Chor, Kevin"]
[WhiteFideId "4119002"]
[BlackFideId "2090740"]
[WhiteElo "2938"]
[BlackElo "2617"]
[Result "1-0"]
[Round "02"]
[TimeControl "180+1"]
[Date "2023.03.14"]
[WhiteClock "0:01:02"]
[BlackClock "0:00:13"]

1. d4 {[%clk 0:03:00]}  Nf6 {[%clk 0:02:59]} 2. c4 {[%clk 0:03:01]}  g6 {[%clk 0:02:59]} 3. Nf3 {[%clk 0:03:01]}  Bg7 {[%clk 0:03:00]} 4. g3 {[%clk 0:03:02]}  O-O {[%clk 0:03:00]} 5. Bg2 {[%clk 0:03:03]}  d6 {[%clk 0:03:01]} 6. Nc3 {[%clk 0:03:03]}  Nc6 {[%clk 0:03:02]} 7. O-O {[%clk 0:03:03]}  Bf5 {[%clk 0:03:01]} 8. Ne1 {[%clk 0:03:03]}  Qc8 {[%clk 0:02:59]} 9. e4 {[%clk 0:03:03]}  Bh3 {[%clk 0:02:59]} 10. f3 {[%clk 0:03:04]}  Bxg2 {[%clk 0:02:59]} 11. Kxg2 {[%clk 0:03:04]}  e5 {[%clk 0:02:59]} 12. d5 {[%clk 0:03:03]}  Nd4 {[%clk 0:02:54]} 13. Nc2 {[%clk 0:03:03]}  Nd7 {[%clk 0:02:37]} 14. Be3 {[%clk 0:03:02]}  Nxc2 {[%clk 0:02:11]} 15. Qxc2 {[%clk 0:03:03]}  f5 {[%clk 0:02:12]} 16. b4 {[%clk 0:02:59]}  f4 {[%clk 0:02:06]} 17. Bf2 {[%clk 0:02:58]}  fxg3 {[%clk 0:02:03]} 18. hxg3 {[%clk 0:02:58]}  Nf6 {[%clk 0:02:04]} 19. c5 {[%clk 0:02:56]}  Qd7 {[%clk 0:02:03]} 20. Rac1 {[%clk 0:02:54]}  g5 {[%clk 0:01:53]} 21. Be3 {[%clk 0:02:39]}  g4 {[%clk 0:01:41]} 22. Qe2 {[%clk 0:02:37]}  gxf3+ {[%clk 0:01:38]} 23. Rxf3 {[%clk 0:02:34]}  Ng4 {[%clk 0:01:37]} 24. Rcf1 {[%clk 0:02:30]}  h5 {[%clk 0:01:20]} 25. Bg5 {[%clk 0:02:19]}  Rxf3 {[%clk 0:01:08]} 26. Qxf3 {[%clk 0:02:19]}  a5 {[%clk 0:01:09]} 27. c6 {[%clk 0:02:04]}  bxc6 {[%clk 0:01:01]} 28. dxc6 {[%clk 0:02:05]}  Qe6 {[%clk 0:00:53]} 29. b5 {[%clk 0:01:49]}  Rf8 {[%clk 0:00:50]} 30. Qe2 {[%clk 0:01:44]}  Qg6 {[%clk 0:00:49]} 31. Bh4 {[%clk 0:01:35]}  Bf6 {[%clk 0:00:46]} 32. Bxf6 {[%clk 0:01:32]}  Nxf6 {[%clk 0:00:44]} 33. Rf5 {[%clk 0:01:26]}  h4 {[%clk 0:00:30]} 34. Qf3 {[%clk 0:01:26]}  Qxg3+ {[%clk 0:00:22]} 35. Qxg3+ {[%clk 0:01:26]}  hxg3 {[%clk 0:00:23]} 36. a4 {[%clk 0:01:08]}  Kg7 {[%clk 0:00:19]} 37. Rf3 {[%clk 0:01:07]}  Rd8 {[%clk 0:00:17]} 38. Rxg3+ {[%clk 0:01:06]}  Kf7 {[%clk 0:00:17]} 39. Rf3 {[%clk 0:01:04]}  Ke6 {[%clk 0:00:18]} 40. Rxf6+ {[%clk 0:01:03]}  Kxf6 {[%clk 0:00:19]} 41. Nd5+ {[%clk 0:01:03]}  Kf7 {[%clk 0:00:17]} 42. Nxc7 {[%clk 0:01:04]}  Rg8+ {[%clk 0:00:11]} 43. Kf3 {[%clk 0:01:03]}  Ke7 {[%clk 0:00:12]} 44. Nd5+ {[%clk 0:01:03]}  Kd8 {[%clk 0:00:13]} 45. b6 {[%clk 0:01:03]}  Kc8 {[%clk 0:00:13]} 46. Ne7+ {[%clk 0:01:02]} 1-0


[Site "https://www.chess.com"]

[Event "Titled Tuesday Blitz March 14 Late 2023"]
[White "Sabar, Ethmane Daouda"]
[Black "Ansh M Shah"]
[WhiteFideId "19600097"]
[BlackFideId "25033379"]
[WhiteElo "1950"]
[BlackElo "2084"]
[Result "1-0"]
[Round "02"]
[TimeControl "180+1"]
[Date "2023.03.14"]
[WhiteClock "0:00:15"]
[BlackClock "0:00:06"]

1. b3 {[%clk 0:03:00]}  e5 {[%clk 0:02:59]} 2. Bb2 {[%clk 0:02:59]}  Nc6 {[%clk 0:03:00]} 3. e3 {[%clk 0:02:59]}  Nf6 {[%clk 0:03:00]} 4. Bb5 {[%clk 0:02:59]}  Bd6 {[%clk 0:02:58]} 5. Ne2 {[%clk 0:02:58]}  a6 {[%clk 0:02:58]} 6. Bxc6 {[%clk 0:02:58]}  dxc6 {[%clk 0:02:58]} 7. O-O {[%clk 0:02:57]}  O-O {[%clk 0:02:57]} 8. d3 {[%clk 0:02:57]}  Nd5 {[%clk 0:02:57]} 9. e4 {[%clk 0:02:55]}  Ne7 {[%clk 0:02:55]} 10. Ng3 {[%clk 0:02:53]}  Be6 {[%clk 0:02:54]} 11. Nd2 {[%clk 0:02:52]}  Qd7 {[%clk 0:02:53]} 12. Nc4 {[%clk 0:02:50]}  Bxc4 {[%clk 0:02:48]} 13. bxc4 {[%clk 0:02:51]}  f5 {[%clk 0:02:40]} 14. exf5 {[%clk 0:02:42]}  Nxf5 {[%clk 0:02:41]} 15. Ne4 {[%clk 0:02:42]}  Nd4 {[%clk 0:02:22]} 16. Bxd4 {[%clk 0:02:12]}  exd4 {[%clk 0:02:23]} 17. Nxd6 {[%clk 0:02:11]}  Qxd6 {[%clk 0:02:22]} 18. Rb1 {[%clk 0:02:04]}  b5 {[%clk 0:02:20]} 19. a4 {[%clk 0:01:44]}  bxc4 {[%clk 0:02:17]} 20. dxc4 {[%clk 0:01:42]}  Rf4 {[%clk 0:02:14]} 21. Qh5 {[%clk 0:01:33]}  Raf8 {[%clk 0:02:12]} 22. c5 {[%clk 0:01:27]}  Qf6 {[%clk 0:02:09]} 23. Qe2 {[%clk 0:01:22]}  Qf7 {[%clk 0:01:53]} 24. Rb7 {[%clk 0:01:16]}  a5 {[%clk 0:01:22]} 25. g3 {[%clk 0:01:10]}  Rf5 {[%clk 0:01:10]} 26. f4 {[%clk 0:00:30]}  Rxc5 {[%clk 0:01:04]} 27. Rd1 {[%clk 0:00:30]}  Rd5 {[%clk 0:00:55]} 28. Qc4 {[%clk 0:00:23]}  Qd7 {[%clk 0:00:37]} 29. Ra7 {[%clk 0:00:20]}  Kh8 {[%clk 0:00:33]} 30. Ra6 {[%clk 0:00:19]}  Rd6 {[%clk 0:00:10]} 31. Rxa5 {[%clk 0:00:18]}  Re8 {[%clk 0:00:10]} 32. Re5 {[%clk 0:00:16]}  Rxe5 {[%clk 0:00:09]} 33. fxe5 {[%clk 0:00:17]}  Rd5 {[%clk 0:00:10]} 34. Re1 {[%clk 0:00:16]}  Qe6 {[%clk 0:00:08]} 35. Qe2 {[%clk 0:00:16]}  h6 {[%clk 0:00:08]} 36. Qe4 {[%clk 0:00:14]}  c5 {[%clk 0:00:08]} 37. a5 {[%clk 0:00:13]}  c4 {[%clk 0:00:07]} 38. a6 {[%clk 0:00:13]}  Ra5 {[%clk 0:00:07]} 39. Qa8+ {[%clk 0:00:11]}  Kh7 {[%clk 0:00:07]} 40. a7 {[%clk 0:00:12]}  d3 {[%clk 0:00:06]} 41. Qe4+ {[%clk 0:00:12]}  Kg8 {[%clk 0:00:05]} 42. a8=Q+ {[%clk 0:00:13]}  Rxa8 {[%clk 0:00:05]} 43. Qxa8+ {[%clk 0:00:13]}  Kh7 {[%clk 0:00:06]} 44. Qe4+ {[%clk 0:00:14]}  Kh8 {[%clk 0:00:06]} 45. cxd3 {[%clk 0:00:14]}  Qb6+ {[%clk 0:00:06]} 46. d4 {[%clk 0:00:14]}  c3 {[%clk 0:00:06]} 47. e6 {[%clk 0:00:14]}  c2 {[%clk 0:00:06]} 48. e7 {[%clk 0:00:15]} 1-0


[Site "https://www.chess.com"]

[Event "Titled Tuesday Blitz March 14 Late 2023"]
[White "Sakun, Volodymyr"]
[Black "Dubov, Daniil"]
[WhiteFideId "14114062"]
[BlackFideId "24126055"]
[WhiteElo "2331"]
[BlackElo "2802"]
[Result "0-1"]
[Round "02"]
[TimeControl "180+1"]
[Date "2023.03.14"]
[WhiteClock "0:00:06"]
[BlackClock "0:00:11"]

1. d4 {[%clk 0:03:00]}  d5 {[%clk 0:03:00]} 2. c4 {[%clk 0:03:00]}  e6 {[%clk 0:03:00]} 3. Nf3 {[%clk 0:02:59]}  Nf6 {[%clk 0:03:00]} 4. Nc3 {[%clk 0:02:59]}  c6 {[%clk 0:03:00]} 5. e3 {[%clk 0:02:58]}  Nbd7 {[%clk 0:03:00]} 6. Bd3 {[%clk 0:02:58]}  dxc4 {[%clk 0:03:00]} 7. Bxc4 {[%clk 0:02:59]}  b5 {[%clk 0:03:00]} 8. Be2 {[%clk 0:02:57]}  Bb7 {[%clk 0:02:47]} 9. O-O {[%clk 0:02:57]}  b4 {[%clk 0:02:43]} 10. Na4 {[%clk 0:02:56]}  Be7 {[%clk 0:02:44]} 11. b3 {[%clk 0:02:55]}  O-O {[%clk 0:02:43]} 12. Bb2 {[%clk 0:02:55]}  Rc8 {[%clk 0:02:42]} 13. Rc1 {[%clk 0:02:55]}  Qa5 {[%clk 0:02:38]} 14. Ne5 {[%clk 0:02:49]}  Nxe5 {[%clk 0:02:35]} 15. dxe5 {[%clk 0:02:50]}  Nd5 {[%clk 0:02:28]} 16. Bf3 {[%clk 0:02:19]}  c5 {[%clk 0:02:21]} 17. Qc2 {[%clk 0:02:12]}  Ba6 {[%clk 0:02:14]} 18. Be2 {[%clk 0:02:06]}  Bb7 {[%clk 0:02:09]} 19. Bf3 {[%clk 0:01:55]}  Ba6 {[%clk 0:01:57]} 20. Be2 {[%clk 0:01:54]}  Bxe2 {[%clk 0:01:57]} 21. Qxe2 {[%clk 0:01:54]}  Nb6 {[%clk 0:01:58]} 22. Nxb6 {[%clk 0:01:47]}  axb6 {[%clk 0:01:59]} 23. Ba1 {[%clk 0:01:47]}  b5 {[%clk 0:01:36]} 24. Rc2 {[%clk 0:01:46]}  Rc6 {[%clk 0:01:35]} 25. Rfc1 {[%clk 0:01:44]}  Rfc8 {[%clk 0:01:34]} 26. f4 {[%clk 0:01:39]}  Qa6 {[%clk 0:01:31]} 27. g4 {[%clk 0:01:19]}  c4 {[%clk 0:01:25]} 28. Bd4 {[%clk 0:01:18]}  Bc5 {[%clk 0:01:11]} 29. Bxc5 {[%clk 0:00:44]}  Rxc5 {[%clk 0:01:10]} 30. Rd1 {[%clk 0:00:43]}  g6 {[%clk 0:00:56]} 31. Qf2 {[%clk 0:00:30]}  Qc6 {[%clk 0:00:48]} 32. Rd6 {[%clk 0:00:28]}  Qe4 {[%clk 0:00:42]} 33. Rd4 {[%clk 0:00:25]}  Qa8 {[%clk 0:00:35]} 34. Rcd2 {[%clk 0:00:19]}  c3 {[%clk 0:00:28]} 35. Rc2 {[%clk 0:00:18]}  Rd5 {[%clk 0:00:28]} 36. Rc1 {[%clk 0:00:14]}  Rxd4 {[%clk 0:00:28]} 37. exd4 {[%clk 0:00:15]}  Qe4 {[%clk 0:00:25]} 38. Re1 {[%clk 0:00:12]}  Qd3 {[%clk 0:00:24]} 39. f5 {[%clk 0:00:10]}  c2 {[%clk 0:00:15]} 40. fxe6 {[%clk 0:00:06]}  fxe6 {[%clk 0:00:15]} 41. Rc1 {[%clk 0:00:06]}  Qd1+ {[%clk 0:00:14]} 42. Qf1 {[%clk 0:00:03]}  Qxg4+ {[%clk 0:00:14]} 43. Kh1 {[%clk 0:00:04]}  Qxd4 {[%clk 0:00:12]} 44. Qe2 {[%clk 0:00:01]}  Qb2 {[%clk 0:00:08]} 45. Qe3 {[%clk 0:00:02]}  Qc3 {[%clk 0:00:07]} 46. Qxc3 {[%clk 0:00:01]}  Rxc3 {[%clk 0:00:07]} 47. Kg2 {[%clk 0:00:02]}  g5 {[%clk 0:00:07]} 48. Kf2 {[%clk 0:00:02]}  Kg7 {[%clk 0:00:08]} 49. Ke2 {[%clk 0:00:03]}  Kg6 {[%clk 0:00:09]} 50. Kd2 {[%clk 0:00:03]}  h5 {[%clk 0:00:09]} 51. Rxc2 {[%clk 0:00:04]}  Rxc2+ {[%clk 0:00:09]} 52. Kxc2 {[%clk 0:00:05]}  Kf5 {[%clk 0:00:09]} 53. Kd3 {[%clk 0:00:05]}  Kxe5 {[%clk 0:00:09]} 54. Ke3 {[%clk 0:00:06]}  g4 {[%clk 0:00:10]} 55. Kf2 {[%clk 0:00:06]}  Kf4 {[%clk 0:00:10]} 56. Kg2 {[%clk 0:00:06]}  e5 {[%clk 0:00:10]} 57. Kf2 {[%clk 0:00:06]}  e4 {[%clk 0:00:11]} 0-1


[Site "https://www.chess.com"]